fUST/lending_fUST_20250719
["ID","MTS","AMOUNT","RATE_DAILY","PERIOD"]
[373189213,1752899443998,-252.65842997,0.00016986,2]
[373189214,1752899444007,-460.0,0.00016986,2]
[373189215,1752899444017,-460.0,0.00016986,2]
[373189216,1752899444027,-460.0,0.00016986,2]
[373189217,1752899444036,-460.0,0.00016986,2]
[373189218,1752899444046,-482.5971525,0.00016986,2]
[373189219,1752899444056,-460.0,0.00016986,2]
[373189220,1752899444066,-460.0,0.00016986,2]
[373189221,1752899444075,-464.50643955,0.00016986,2]
[373189222,1752899444084,-460.0,0.00016986,2]
[373189223,1752899444094,-460.0,0.00016986,2]
[373189224,1752899444103,-460.0,0.00016986,2]
[373189225,1752899444113,-460.0,0.00016986,2]
[373189226,1752899444122,-590.65,0.00016986,2]
[373189227,1752899444132,-460.0,0.00016986,2]
[373189228,1752899444141,-460.0,0.00016986,2]
[373189229,1752899444151,-460.0,0.00016986,2]
[373189230,1752899444160,-1104.32,0.00016986,2]
[373189231,1752899444170,-460.0,0.00016986,2]
[373189232,1752899444179,-1535.63,0.00016986,2]
[373189233,1752899444188,-2089.51,0.00016986,2]
[373189234,1752899444198,-460.0,0.00016986,2]
[373189236,1752899444208,-460.0,0.00016986,2]
[373189238,1752899444217,-460.0,0.00016986,2]
[373189239,1752899444227,-460.0,0.00016986,2]
[373189241,1752899444236,-460.0,0.00016986,2]
[373189242,1752899444246,-483.33,0.00016986,2]
[373189244,1752899444255,-1617.24,0.00016986,2]
[373189245,1752899444264,-460.0,0.00016986,2]
[373189247,1752899444273,-460.0,0.00016986,2]
[373189249,1752899444284,-3749.11,0.00016986,2]
[373189251,1752899444293,-460.0,0.00016986,2]
[373189253,1752899444304,-460.0,0.00016986,2]
[373189255,1752899444313,-460.0,0.00016986,2]
[373189257,1752899444322,-1071.25,0.00016986,2]
[373189259,1752899444332,-292.89467807,0.00016986,2]
[373189261,1752899444341,-460.0,0.00016986,2]
[373189262,1752899444350,-460.0,0.00016986,2]
[373189264,1752899444359,-204.94526416,0.00016986,2]
[373189266,1752899444368,-460.0,0.00016986,2]
[373189268,1752899444377,-460.0,0.00016986,2]
[373189270,1752899444386,-460.0,0.00016986,2]
[373189272,1752899444396,-460.0,0.00016986,2]
[373189274,1752899444405,-460.0,0.00016986,2]
[373189276,1752899444415,-460.0,0.00016986,2]
[373189278,1752899444424,-460.0,0.00016986,2]
[373189280,1752899444434,-460.0,0.00016986,2]
[373189282,1752899444444,-460.0,0.00016986,2]
[373189284,1752899444453,-460.0,0.00016986,2]
[373189286,1752899444463,-460.0,0.00016986,2]
[373189288,1752899444472,-460.0,0.00016986,2]
[373189290,1752899444481,-460.0,0.00016986,2]
[373189292,1752899444491,-464.93580461,0.00016986,2]
[373189294,1752899444500,-1814.82,0.00016986,2]
[373189296,1752899444510,-467.71374881,0.00016986,2]
[373189299,1752899444524,-460.0,0.00016986,2]
[373189301,1752899444536,-460.0,0.00016986,2]
[373189303,1752899444546,-460.0,0.00016986,2]
[373189305,1752899444557,-460.0,0.00016986,2]
[373189307,1752899444566,-855.48,0.00016986,2]
[373189309,1752899444578,-460.0,0.00016986,2]
[373189312,1752899444587,-460.0,0.00016986,2]
[373189314,1752899444597,-460.0,0.00016986,2]
[373189315,1752899444606,-460.0,0.00016986,2]
[373189318,1752899444617,-460.0,0.00016986,2]
[373189320,1752899444626,-460.0,0.00016986,2]
[373189321,1752899444636,-460.0,0.00016986,2]
[373189323,1752899444645,-460.0,0.00016986,2]
[373189325,1752899444654,-460.0,0.00016986,2]
[373189327,1752899444663,-460.0,0.00016986,2]
[373189329,1752899444672,-543.63,0.00016986,2]
[373189332,1752899444682,-460.0,0.00016986,2]
[373189333,1752899444691,-460.0,0.00016986,2]
[373189336,1752899444701,-244.31533796,0.00016986,2]
[373189338,1752899444713,-234.11569496,0.00016986,2]
[373189340,1752899444722,-460.0,0.00016986,2]
[373189342,1752899444731,-2100.02737365,0.00016997,2]
[373189344,1752899444740,-52785.81477334,0.00017,2]
[373189346,1752899444750,-1000.0,0.00017021,2]
[373189348,1752899444759,-1005.7834431,0.00017021,2]
[373189350,1752899444768,-500.0,0.00017021,2]
[373189352,1752899444778,-460.0,0.00017045,2]
[373189354,1752899444787,-460.0,0.00017045,2]
[373189356,1752899444798,-460.0,0.00017045,2]
[373189358,1752899444807,-460.0,0.00017045,2]
[373189360,1752899444816,-460.0,0.00017046,2]
[373189362,1752899444825,-2389.79,0.00017046,2]
[373189364,1752899444835,-840.31,0.00017046,2]
[373189366,1752899444844,-1200.99,0.00017047,2]
[373189368,1752899444854,-1573.54,0.0001706,2]
[373189370,1752899444863,-460.0,0.0001706,2]
[373189372,1752899444873,-856.61,0.0001706,2]
[373189374,1752899444882,-1108.86,0.0001706,2]
[373189376,1752899444891,-460.0,0.0001706,2]
[373189378,1752899444905,-358.6756731,0.00017068,2]
[373189380,1752899444924,-209.87789923,0.00017123,3]
[373189382,1752899444936,-3809.5421012,0.00017176,2]
[373189384,1752899444945,-504.22376068,0.00017213,2]
[373189386,1752899444955,-501.65684263,0.00017213,2]
[373189388,1752899444964,-211.33368444,0.00017213,2]
[373189390,1752899444977,-500.0,0.00017258,2]
[373189392,1752899444989,-151.0,0.00017258,2]
[373189394,1752899444998,-460.0,0.0001726,2]
[373189396,1752899445008,-535.41929037,0.0001726,2]
[373189398,1752899445017,-473.78031822,0.0001726,2]
[373189400,1752899445027,-460.0,0.0001726,2]
[373189402,1752899445036,-460.0,0.0001726,2]
[373189404,1752899445046,-879.78,0.0001726,2]
[373189406,1752899445056,-460.0,0.0001726,2]
[373189408,1752899445065,-460.0,0.0001726,2]
[373189410,1752899445075,-490.15,0.0001726,2]
[373189412,1752899445084,-460.0,0.0001726,2]
[373189414,1752899445094,-460.0,0.0001726,2]
[373189416,1752899445106,-460.0,0.0001726,2]
[373189418,1752899445115,-460.0,0.0001726,2]
[373189420,1752899445125,-460.0,0.0001726,2]
[373189422,1752899445135,-460.0,0.0001726,2]
[373189424,1752899445145,-460.0,0.0001726,2]
[373189426,1752899445154,-460.0,0.0001726,2]
[373189428,1752899445164,-460.0,0.0001726,2]
[373189430,1752899445175,-460.0,0.0001726,2]
[373189432,1752899445184,-198.22,0.0001726,2]
[373189434,1752899445193,-460.0,0.0001726,2]
[373189436,1752899445203,-460.0,0.0001726,2]
[373189438,1752899445213,-460.0,0.0001726,2]
[373189440,1752899445222,-476.63075359,0.0001726,2]
[373189442,1752899445232,-460.0,0.0001726,2]
[373189444,1752899445242,-460.0,0.0001726,2]
[373189446,1752899445251,-460.0,0.0001726,2]
[373189448,1752899445260,-451.14,0.0001726,2]
[373189450,1752899445269,-590.65,0.0001726,2]
[373189452,1752899445278,-460.0,0.0001726,2]
[373189454,1752899445287,-460.0,0.0001726,2]
[373189455,1752899445297,-1104.32,0.0001726,2]
[373189458,1752899445306,-1535.63,0.0001726,2]
[373189459,1752899445316,-2089.51,0.0001726,2]
[373189461,1752899445325,-460.0,0.0001726,2]
[373189464,1752899445336,-460.0,0.0001726,2]
[373189466,1752899445346,-460.0,0.0001726,2]
[373189468,1752899445355,-483.33,0.0001726,2]
[373189470,1752899445364,-1617.24,0.0001726,2]
[373189472,1752899445373,-460.0,0.0001726,2]
[373189474,1752899445383,-3749.11,0.0001726,2]
[373189476,1752899445392,-460.0,0.0001726,2]
[373189478,1752899445401,-460.0,0.0001726,2]
[373189480,1752899445410,-460.0,0.0001726,2]
[373189482,1752899445420,-1071.25,0.0001726,2]
[373189484,1752899445430,-460.0,0.0001726,2]
[373189486,1752899445440,-460.0,0.0001726,2]
[373189488,1752899445449,-460.0,0.0001726,2]
[373189489,1752899445458,-460.0,0.0001726,2]
[373189491,1752899445468,-460.0,0.0001726,2]
[373189493,1752899445477,-460.0,0.0001726,2]
[373189495,1752899445486,-460.0,0.0001726,2]
[373189497,1752899445497,-460.0,0.0001726,2]
[373189499,1752899445506,-590.44,0.0001726,2]
[373189501,1752899445516,-460.0,0.0001726,2]
[373189503,1752899445526,-460.0,0.0001726,2]
[373189506,1752899445535,-460.0,0.0001726,2]
[373189507,1752899445544,-460.0,0.0001726,2]
[373189509,1752899445555,-1814.82,0.0001726,2]
[373189511,1752899445564,-460.0,0.0001726,2]
[373189514,1752899445574,-460.0,0.0001726,2]
[373189515,1752899445584,-460.0,0.0001726,2]
[373189517,1752899445594,-460.0,0.0001726,2]
[373189520,1752899445603,-855.48,0.0001726,2]
[373189522,1752899445613,-460.0,0.0001726,2]
[373189524,1752899445622,-460.0,0.0001726,2]
[373189526,1752899445632,-469.98334508,0.0001726,2]
[373189528,1752899445642,-460.0,0.0001726,2]
[373189530,1752899445651,-460.0,0.0001726,2]
[373189532,1752899445661,-460.0,0.0001726,2]
[373189534,1752899445669,-460.0,0.0001726,2]
[373189536,1752899445678,-543.63,0.0001726,2]
[373189538,1752899445688,-151.0,0.0001726,2]
[373189540,1752899445697,-460.0,0.0001726,2]
[373189542,1752899445707,-460.0,0.0001726,2]
[373189544,1752899445716,-998.88207961,0.0001728,2]
[373189546,1752899445725,-1730.99,0.000173,2]
[373189548,1752899445735,-460.0,0.00017319,2]
[373189549,1752899445744,-460.0,0.0001732,2]
[373189551,1752899445753,-2389.79,0.0001732,2]
[373189553,1752899445762,-840.31,0.0001732,2]
[373189555,1752899445771,-500.44944029,0.00017321,2]
[373189557,1752899445781,-1000.0,0.00017321,2]
[373189559,1752899445790,-1200.99,0.00017321,2]
[373189561,1752899445800,-1573.54,0.00017334,2]
[373189563,1752899445809,-460.0,0.00017334,2]
[373189565,1752899445819,-856.61,0.00017334,2]
[373189566,1752899445828,-1108.86,0.00017334,2]
[373189567,1752899445837,-501.15649651,0.00017391,2]
[373189568,1752899445847,-3809.5421012,0.00017452,2]
[373189569,1752899445857,-911.94009619,0.00017521,2]
[373189570,1752899445866,-500.0,0.00017532,2]
[373189571,1752899445875,-151.0,0.00017532,2]
[373189572,1752899445885,-225.49467486,0.00017534,2]
[373189573,1752899445897,-460.0,0.00017534,2]
[373189574,1752899445907,-559.02,0.00017534,2]
[373189575,1752899445917,-879.78,0.00017534,2]
[373189576,1752899445926,-460.0,0.00017534,2]
[373189577,1752899445937,-460.0,0.00017534,2]
[373189578,1752899445946,-460.0,0.00017534,2]
[373189579,1752899445956,-460.0,0.00017534,2]
[373189580,1752899445965,-559.32849972,0.00017534,2]
[373189581,1752899445975,-257.76349841,0.00017534,2]
[373189582,1752899445985,-460.0,0.00017534,2]
[373189583,1752899445994,-460.0,0.00017534,2]
[373189584,1752899446004,-460.0,0.00017534,2]
[373189585,1752899446013,-460.0,0.00017534,2]
[373189586,1752899446023,-460.0,0.00017534,2]
[373189587,1752899446033,-460.0,0.00017534,2]
[373189588,1752899446042,-460.0,0.00017534,2]
[373189590,1752899446052,-173.7,0.00017534,2]
[373189592,1752899446062,-460.0,0.00017534,2]
[373189593,1752899446071,-590.65,0.00017534,2]
[373189596,1752899446081,-356.34858829,0.00017534,2]
[373189598,1752899446092,-460.0,0.00017534,2]
[373189599,1752899446101,-1104.32,0.00017534,2]
[373189602,1752899446111,-1535.63,0.00017534,2]
[373189604,1752899446121,-2089.51,0.00017534,2]
[373189606,1752899446131,-460.0,0.00017534,2]
[373189608,1752899446140,-460.0,0.00017534,2]
[373189610,1752899446150,-474.89216432,0.00017534,2]
[373189611,1752899446159,-483.33,0.00017534,2]
[373189614,1752899446168,-1617.24,0.00017534,2]
[373189615,1752899446178,-460.0,0.00017534,2]
[373189617,1752899446187,-460.0,0.00017534,2]
[373189620,1752899446197,-3749.11,0.00017534,2]
[373189621,1752899446206,-460.0,0.00017534,2]
[373189623,1752899446215,-460.0,0.00017534,2]
[373189626,1752899446225,-1071.25,0.00017534,2]
[373189627,1752899446234,-460.0,0.00017534,2]
[373189629,1752899446244,-460.0,0.00017534,2]
[373189632,1752899446256,-460.0,0.00017534,2]
[373189634,1752899446265,-460.0,0.00017534,2]
[373189636,1752899446275,-460.0,0.00017534,2]
[373189650,1752899446395,-460.0,0.00017534,2]
[373189652,1752899446405,-460.0,0.00017534,2]
[373189654,1752899446414,-460.0,0.00017534,2]
[373189656,1752899446424,-460.0,0.00017534,2]
[373189658,1752899446434,-460.0,0.00017534,2]
[373189660,1752899446443,-1814.82,0.00017534,2]
[373189662,1752899446452,-460.0,0.00017534,2]
[373189664,1752899446462,-460.0,0.00017534,2]
[373189666,1752899446472,-542.74400995,0.00017534,2]
[373189668,1752899446481,-855.48,0.00017534,2]
[373189670,1752899446490,-460.0,0.00017534,2]
[373189672,1752899446500,-460.0,0.00017534,2]
[373189674,1752899446509,-460.0,0.00017534,2]
[373189676,1752899446519,-460.0,0.00017534,2]
[373189678,1752899446528,-460.0,0.00017534,2]
[373189680,1752899446538,-460.0,0.00017534,2]
[373189682,1752899446547,-460.0,0.00017534,2]
[373189684,1752899446558,-543.63,0.00017534,2]
[373189686,1752899446567,-460.0,0.00017534,2]
[373189688,1752899446578,-151.0,0.00017568,2]
[373189690,1752899446587,-152.450528,0.00017568,2]
[373189692,1752899446597,-1500.0,0.00017568,2]
[373189694,1752899446607,-992.53666303,0.0001758,2]
[373189696,1752899446616,-460.0,0.00017593,2]
[373189698,1752899446626,-460.0,0.00017594,2]
[373189700,1752899446635,-2389.79,0.00017594,2]
[373189702,1752899446646,-840.31,0.00017594,2]
[373189704,1752899446655,-1200.99,0.00017595,2]
[373189706,1752899446665,-300.63562019,0.000176,2]
[373189708,1752899446674,-1573.54,0.00017608,2]
[373189710,1752899446684,-460.0,0.00017608,2]
[373189712,1752899446693,-856.61,0.00017608,2]
[373189714,1752899446703,-1108.86,0.00017608,2]
[373189716,1752899446712,-589.76127044,0.00017615,2]
[373189718,1752899446721,-3809.5421012,0.00017728,2]
[373189720,1752899446730,-500.0,0.00017806,2]
[373189722,1752899446740,-240.52807795,0.00017806,2]
[373189724,1752899446750,-372.23364981,0.00017808,2]
[373189726,1752899446759,-879.78,0.00017808,2]
[373189728,1752899446769,-460.0,0.00017808,2]
[373189730,1752899446778,-460.0,0.00017808,2]
[373189732,1752899446787,-476.15220808,0.00017808,2]
[373189734,1752899446797,-460.0,0.00017808,2]
[373189736,1752899446807,-460.0,0.00017808,2]
[373189738,1752899446815,-460.0,0.00017808,2]
[373189740,1752899446825,-460.0,0.00017808,2]
[373189742,1752899446834,-460.0,0.00017808,2]
[373189744,1752899446843,-460.0,0.00017808,2]
[373189746,1752899446852,-460.0,0.00017808,2]
[373189748,1752899446862,-151.0,0.00017808,2]
[373189750,1752899446871,-234.571149,0.00017808,2]
[373189752,1752899446880,-460.0,0.00017808,2]
[373189754,1752899446892,-590.65,0.00017808,2]
[373189756,1752899446904,-1104.32,0.00017808,2]
[373189758,1752899446915,-1535.63,0.00017808,2]
[373189761,1752899446924,-2089.51,0.00017808,2]
[373189763,1752899446934,-460.0,0.00017808,2]
[373189765,1752899446943,-460.0,0.00017808,2]
[373189767,1752899446954,-483.33,0.00017808,2]
[373189768,1752899446963,-1617.24,0.00017808,2]
[373189771,1752899446972,-460.0,0.00017808,2]
[373189772,1752899446982,-460.0,0.00017808,2]
[373189774,1752899446992,-3749.11,0.00017808,2]
[373189776,1752899447001,-460.0,0.00017808,2]
[373189778,1752899447010,-460.0,0.00017808,2]
[373189780,1752899447019,-151.0,0.00017808,2]
[373189782,1752899447029,-1071.25,0.00017808,2]
[373189785,1752899447039,-460.0,0.00017808,2]
[373189787,1752899447048,-460.0,0.00017808,2]
[373189789,1752899447059,-460.0,0.00017808,2]
[373189791,1752899447069,-151.0,0.00017808,2]
[373189793,1752899447078,-460.0,0.00017808,2]
[373189795,1752899447088,-151.0,0.00017808,2]
[373189797,1752899447097,-460.0,0.00017808,2]
[373189799,1752899447106,-460.0,0.00017808,2]
[373189801,1752899447115,-460.0,0.00017808,2]
[373189803,1752899447124,-460.0,0.00017808,2]
[373189804,1752899447133,-1814.82,0.00017808,2]
[373189807,1752899447143,-151.0,0.00017808,2]
[373189808,1752899447154,-460.0,0.00017808,2]
[373189810,1752899447163,-460.0,0.00017808,2]
[373189812,1752899447173,-855.48,0.00017808,2]
[373189814,1752899447182,-151.0,0.00017808,2]
[373189817,1752899447191,-460.0,0.00017808,2]
[373189819,1752899447200,-151.0,0.00017808,2]
[373189821,1752899447210,-151.0,0.00017808,2]
[373189822,1752899447219,-460.0,0.00017808,2]
[373189825,1752899447229,-151.0,0.00017808,2]
[373189827,1752899447238,-287.14175686,0.00017808,2]
[373189828,1752899447247,-460.0,0.00017808,2]
[373189830,1752899447257,-460.0,0.00017808,2]
[373189833,1752899447268,-460.0,0.00017808,2]
[373189834,1752899447279,-543.63,0.00017808,2]
[373189836,1752899447290,-151.0,0.00017808,2]
[373189838,1752899447303,-151.0,0.00017808,2]
[373189841,1752899447312,-151.0,0.00017808,2]
[373189842,1752899447322,-460.0,0.00017808,2]
[373189845,1752899447331,-460.0,0.00017867,2]
[373189847,1752899447341,-151.0,0.00017867,2]
[373189849,1752899447350,-151.0,0.00017867,2]
[373189851,1752899447359,-151.0,0.00017867,2]
[373189853,1752899447368,-151.0,0.00017867,2]
[373189855,1752899447377,-160.040661,0.00017867,2]
[373189857,1752899447386,-160.040661,0.00017867,2]
[373189859,1752899447396,-151.0,0.00017867,2]
[373189861,1752899447405,-151.0,0.00017867,2]
[373189863,1752899447414,-230.063457,0.00017867,2]
[373189865,1752899447423,-460.0,0.00017868,2]
[373189867,1752899447432,-2389.79,0.00017868,2]
[373189868,1752899447442,-840.31,0.00017868,2]
[373189870,1752899447451,-508.02044078,0.00017868,2]
[373189872,1752899447460,-1200.99,0.00017869,2]
[373189874,1752899447469,-576.7,0.00017873,3]
[373189877,1752899447479,-1573.54,0.00017882,2]
[373189878,1752899447488,-460.0,0.00017882,2]
[373189880,1752899447498,-856.61,0.00017882,2]
[373189883,1752899447508,-1108.86,0.00017882,2]
[373189885,1752899447518,-1666.0,0.00017921,2]
[373189887,1752899447527,-420.0,0.00017921,2]
[373189889,1752899447537,-182.04499252,0.00018,2]
[373189891,1752899447546,-160.0,0.00018,2]
[373189893,1752899447557,-3809.5421012,0.00018003,2]
[373189895,1752899447567,-210.0,0.00018011,2]
[373189897,1752899447576,-1153.42,0.00018072,3]
[373189899,1752899447586,-500.0,0.0001808,2]
[373189901,1752899447596,-879.78,0.00018082,2]
[373189903,1752899447605,-527.74,0.00018082,2]
[373189905,1752899447615,-460.0,0.00018082,2]
[373189907,1752899447624,-515.52,0.00018082,2]
[373189909,1752899447633,-460.0,0.00018082,2]
[373189911,1752899447643,-460.0,0.00018082,2]
[373189913,1752899447652,-460.0,0.00018082,2]
[373189915,1752899447661,-460.0,0.00018082,2]
[373189917,1752899447671,-460.0,0.00018082,2]
[373189919,1752899447680,-460.0,0.00018082,2]
[373189921,1752899447689,-590.65,0.00018082,2]
[373189923,1752899447698,-1104.32,0.00018082,2]
[373189925,1752899447707,-1535.63,0.00018082,2]
[373189927,1752899447716,-2089.51,0.00018082,2]
[373189929,1752899447725,-460.0,0.00018082,2]
[373189931,1752899447735,-460.0,0.00018082,2]
[373189933,1752899447744,-483.33,0.00018082,2]
[373189935,1752899447753,-1617.24,0.00018082,2]
[373189937,1752899447763,-460.0,0.00018082,2]
[373189939,1752899447772,-460.0,0.00018082,2]
[373189941,1752899447782,-460.0,0.00018082,2]
[373189943,1752899447791,-3749.11,0.00018082,2]
[373189945,1752899447800,-460.0,0.00018082,2]
[373189947,1752899447810,-1071.25,0.00018082,2]
[373189949,1752899447819,-460.0,0.00018082,2]
[373189951,1752899447829,-460.0,0.00018082,2]
[373189953,1752899447838,-460.0,0.00018082,2]
[373189954,1752899447847,-460.0,0.00018082,2]
[373189956,1752899447857,-460.0,0.00018082,2]
[373189958,1752899447866,-460.0,0.00018082,2]
[373189960,1752899447875,-460.0,0.00018082,2]
[373189963,1752899447885,-1814.82,0.00018082,2]
[373189965,1752899447895,-460.0,0.00018082,2]
[373189967,1752899447910,-460.0,0.00018082,2]
[373189969,1752899447920,-855.48,0.00018082,2]
[373189971,1752899447930,-460.0,0.00018082,2]
[373189973,1752899447939,-460.0,0.00018082,2]
[373189975,1752899447950,-460.0,0.00018082,2]
[373189977,1752899447960,-460.0,0.00018082,2]
[373189979,1752899447969,-460.0,0.00018082,2]
[373189981,1752899447980,-543.63,0.00018082,2]
[373189983,1752899447989,-460.0,0.00018082,2]
[373189985,1752899447998,-183.41532937,0.00018116,2]
[373189987,1752899448008,-460.0,0.00018141,2]
[373189989,1752899448017,-151.0,0.00018141,2]
[373189991,1752899448026,-151.735129,0.00018141,2]
[373189993,1752899448035,-151.0,0.00018141,2]
[373189995,1752899448045,-2389.79,0.00018142,2]
[373189997,1752899448055,-840.31,0.00018142,2]
[373189999,1752899448066,-1200.99,0.00018143,2]
[373190001,1752899448075,-1573.54,0.00018156,2]
[373190003,1752899448084,-460.0,0.00018156,2]
[373190005,1752899448094,-856.61,0.00018156,2]
[373190007,1752899448104,-1108.86,0.00018156,2]
[373190009,1752899448113,-3809.5421012,0.00018279,2]
[373190011,1752899448122,-525.83049785,0.00018345,2]
[373190013,1752899448133,-160.0,0.00018345,2]
[373190015,1752899448142,-230.94145789,0.00018345,2]
[373190017,1752899448152,-160.0,0.00018345,2]
[373190019,1752899448161,-476.34170116,0.00018345,2]
[373190021,1752899448171,-160.0,0.00018345,2]
[373190023,1752899448180,-12612.80205064,0.00018345,2]
[373190025,1752899448190,-215.67360783,0.00018345,2]
[373190027,1752899448199,-160.0,0.00018345,2]
[373190029,1752899448209,-160.0,0.00018345,2]
[373190032,1752899448219,-214.52603969,0.00018345,2]
[373190034,1752899448228,-839.454303,0.00018345,2]
[373190036,1752899448237,-160.0,0.00018347,2]
[373190038,1752899448246,-160.0,0.00018347,2]
[373190040,1752899448255,-500.0,0.00018354,2]
[373190042,1752899448264,-879.78,0.00018356,2]
[373190044,1752899448273,-310.8,0.00018356,2]
[373190046,1752899448283,-460.0,0.00018356,2]
[373190047,1752899448293,-460.0,0.00018356,2]
[373190050,1752899448303,-341.03123815,0.00018356,2]
[373190052,1752899448313,-460.0,0.00018356,2]
[373190053,1752899448322,-460.0,0.00018356,2]
[373190055,1752899448331,-590.65,0.00018356,2]
[373190057,1752899448340,-1104.32,0.00018356,2]
[373190059,1752899448350,-2089.51,0.00018356,2]
[373190061,1752899448359,-1535.63,0.00018356,2]
[373190063,1752899448369,-460.0,0.00018356,2]
[373190065,1752899448378,-460.0,0.00018356,2]
[373190067,1752899448387,-483.33,0.00018356,2]
[373190069,1752899448397,-1617.24,0.00018356,2]
[373190071,1752899448406,-460.0,0.00018356,2]
[373190073,1752899448415,-211.06105231,0.00018356,2]
[373190075,1752899448425,-470.44713192,0.00018356,2]
[373190077,1752899448434,-3749.11,0.00018356,2]
[373190079,1752899448444,-460.0,0.00018356,2]
[373190081,1752899448454,-1071.25,0.00018356,2]
[373190083,1752899448463,-460.0,0.00018356,2]
[373190085,1752899448472,-460.0,0.00018356,2]
[373190087,1752899448481,-460.0,0.00018356,2]
[373190089,1752899448490,-460.0,0.00018356,2]
[373190091,1752899448499,-460.0,0.00018356,2]
[373190093,1752899448508,-460.0,0.00018356,2]
[373190095,1752899448517,-460.0,0.00018356,2]
[373190097,1752899448527,-1814.82,0.00018356,2]
[373190099,1752899448537,-460.0,0.00018356,2]
[373190102,1752899448547,-460.0,0.00018356,2]
[373190104,1752899448559,-855.48,0.00018356,2]
[373190105,1752899448569,-460.0,0.00018356,2]
[373190107,1752899448579,-460.0,0.00018356,2]
[373190109,1752899448589,-460.0,0.00018356,2]
[373190111,1752899448599,-460.0,0.00018356,2]
[373190113,1752899448608,-476.99766685,0.00018356,2]
[373190115,1752899448618,-543.63,0.00018356,2]
[373190117,1752899448627,-460.0,0.00018356,2]
[373190120,1752899448637,-207.4,0.00018367,2]
[373190122,1752899448646,-151.0,0.00018367,2]
[373190123,1752899448655,-151.0,0.00018367,2]
[373190126,1752899448665,-3801.642,0.00018367,2]
[373190128,1752899448676,-151.0,0.00018367,2]
[373190130,1752899448685,-151.0,0.00018367,2]
[373190131,1752899448694,-151.0,0.00018367,2]
[373190133,1752899448704,-151.0,0.00018367,2]
[373190135,1752899448713,-151.0,0.00018367,2]
[373190138,1752899448723,-151.0,0.00018367,2]
[373190140,1752899448733,-151.0,0.00018367,2]
[373190142,1752899448743,-151.0,0.00018367,2]
[373190144,1752899448753,-151.0,0.00018367,2]
[373190146,1752899448762,-151.0,0.00018367,2]
[373190148,1752899448771,-151.0,0.00018367,2]
[373190150,1752899448780,-151.0,0.00018367,2]
[373190152,1752899448790,-151.0,0.00018367,2]
[373190154,1752899448799,-151.0,0.00018367,2]
[373190156,1752899448810,-151.0,0.00018367,2]
[373190158,1752899448819,-151.0,0.00018367,2]
[373190160,1752899448829,-151.0,0.00018367,2]
[373190162,1752899448838,-25000.0,0.00018367,2]
[373190164,1752899448847,-151.0,0.00018367,2]
[373190166,1752899448856,-151.0,0.00018367,2]
[373190168,1752899448866,-716.45673598,0.00018367,2]
[373190170,1752899448875,-151.0,0.00018367,2]
[373190172,1752899448884,-151.0,0.00018367,2]
[373190174,1752899448894,-151.208484,0.00018367,2]
[373190176,1752899448907,-262.51255,0.00018367,2]
[373190178,1752899448916,-262.51255,0.00018367,2]